[Event "26th Womens ECCC 2022"]
[Site "Mayrhofen"]
[Date "2022.10.07"]
[Round "5.26"]
[White "Federovski, Adi"]
[Black "Drljevic, Ljilja"]
[Result "0-1"]
[ECO "B06"]
[WhiteElo "1967"]
[BlackElo "2172"]
[Annotator "TA"]
[PlyCount "282"]
[EventDate "2022.10.03"]
[EventType "team-tourn"]
[EventCountry "AUT"]
[SourceTitle "playchess.com"]
[Source "ChessBase"]
[SourceQuality "1"]
[TimeControl "40/5400+30:1800+30"]

{[%evp 46,282,0,-60,0,-88,17,0,76,66,50,0,112,0,45,0,113,125,94,105,104,0,0,-147,-82,-325,-317,-326,-312,-324,-296,-349,-342,-362,-307,-378,-389,-442,-442,-442,-357,-623,-388,-379,-363,-596,-379,-387,-382,-407,-359,-305,-295,-393,-370,-354,-342,-404,-232,-283,-264,-357,-315,-324,-329,-312,-318,-298,-263,-259,-253,-357,-340,-404,-417,-335,-237,-260,-132,-166,0,0,0,-8,-8,-8,-8,-8,-8,-32,-22,-40,-18,-26,0,-40,-8,-59,0,0,0,0,0,-8,0,0,0,0,0,0,0,0,0,-8,0,0,0,-8,0,0,0,0,0,0,0,0,0,0,0,0,0,0,0,-8,-8,-8,-8,-8,-8,-16,-8,-8,-8,-8,-8,-8,-8,-14,0,0,0,0,0,0,0,0,0,0,0,0,0,0,0,-68,-8,-116,-165,-220,0,-127,-8,-448,-120,-164,0,0,0,0,0,0,0,0,0,0,0,0,0,0,0,-17,-17,-17,-25,0,0,0,0,0,0,0,0,0,0,0,0,-8,-8,-17,0,0,0,0,0,-25,0,0,0,0,0,0,0,-8,0,0,0,-92,0,0,0,0,0,0,0,0,0,-387,-359,-359,-352]} 1. e4 {[%emt 0:00:03]} g6 {[%emt 0:00:02]} 2. d4 {[%emt 0:00:15]} Bg7 {[%emt 0:00:32]} 3. Nc3 a6 {[%emt 0:01:07]} 4. h4 {[%emt 0:01:42]} h6 {[%emt 0:01:43]} 5. Be3 {[%emt 0:04:38]} e6 {[%emt 0:04:28]} 6. Qd2 {[%emt 0:02:08]} b5 {[%emt 0:07:37]} 7. h5 {[%emt 0:12:53]} g5 {[%emt 0:00:55]} 8. f4 {[%emt 0:01:14]} gxf4 {[%emt 0:06:03]} 9. Bxf4 {[%emt 0:00:15]} Bb7 {[%emt 0:00:21]} 10. a3 {[%emt 0:04:26]} Nf6 {[%emt 0:15:48]} 11. Qe3 {[%emt 0:09:50]} d6 {[%emt 0:07:33]} 12. O-O-O {[%emt 0:04:14]} Qe7 {[%emt 0:04:56]} 13. Nf3 {[%emt 0:11:00]} Nbd7 {[%emt 0:02:19]} 14. Be2 {[%emt 0:09:15]} O-O-O {[%emt 0:15:46]} 15. Nh4 {[%emt 0:05:58]} Nb6 {[%emt 0:05:23]} 16. g4 {[%emt 0:02:28]} d5 {[%emt 0:05:19]} 17. Be5 {[%emt 0:12:47]} Nbd7 {[%emt 0:02:36]} 18. exd5 {[%emt 0:01:52]} Nxe5 {[%emt 0:01:14]} 19. dxe5 {[%emt 0:00:22]} Nxd5 {[%emt 0:01:17]} 20. Nxd5 {[%emt 0:00:18]} exd5 {[%emt 0:01:52]} 21. Nf3 {[%emt 0:01:23]} Rhe8 {[%emt 0:04:17]} 22. Bd3 {[%emt 0:02:15]} Kb8 {[%emt 0:05:09]} 23. Rhe1 {[%emt 0:01:44]} c5 {[%emt 0:00:42]} (23... d4 $5 {[%cal Rd4e3]} 24. Qf4 Bxf3 25. Qxf3 $15) 24. Bf5 {[%emt 0:02:25]} (24. Qd2 $11) 24... Qc7 {[%emt 0:02:19]} (24... d4 $15 25. Qf2 Qc7) 25. g5 {[%emt 0:01:44]} (25. Qd2 $11) 25... hxg5 {[%emt 0:01:52]} (25... d4 $17 26. Qe2 hxg5) 26. Qxg5 $11 {[%emt 0:00:24]} Bh8 {[%emt 0:00:14]} (26... d4 $11) 27. h6 $16 {[%emt 0:01:59]} d4 {[%emt 0:01:10]} 28. Be4 {[%emt 0:02:05]} (28. Qh5 $14) 28... Bc8 {[%emt 0:00:15]} (28... f6 $11 {remains equal.} 29. Qg6 fxe5) 29. Bf5 {[%emt 0:01:45]} (29. h7 $16) 29... Bb7 $1 $14 {[%emt 0:00:01]} 30. Be4 {[%emt 0:00:09]} (30. Qh5 $14) 30... Bc8 $16 {[%emt 0:00:02]} 31. h7 {[%emt 0:01:21]} Be6 {[%emt 0:01:44]} 32. Qd2 {[%emt 0:01:20]} Bg4 {[%emt 0:00:28]} 33. Qg2 {[%emt 0:01:13]} (33. Qh6 $16 Ka7 34. Kb1) 33... f5 $11 {[%emt 0:00:43]} 34. Bd3 {[%emt 0:01:10]} (34. exf6 $1 $11 {was the only way to keep the balance.} Qf4+ 35. Nd2 Bxd1 36. Rf1) 34... Qxh7 {[%emt 0:00:27]} (34... Qc6 $142 35. Be2 c4) 35. Kb1 $2 {[%emt 0:00:46]} (35. Qxg4 $17 fxg4 36. Bxh7 gxf3 37. Rf1) 35... Qb7 $19 {[%emt 0:00:21]} 36. Be2 {[%emt 0:00:24]} Bxe5 {[%emt 0:00:38]} 37. Qf2 {[%emt 0:00:28]} Bc7 {[%emt 0:00:27]} 38. Ng1 {[%emt 0:00:37]} Qd5 {[%emt 0:00:41]} 39. Bf3 {[%emt 0:00:28]} Qd6 {[%emt 0:00:40]} 40. Rxe8 {[%emt 0:00:35]} Rxe8 {[%emt 0:00:02]} 41. Re1 {[%emt 0:03:34]} Rxe1+ {[%emt 0:06:22]} 42. Qxe1 {[%emt 0:00:05]} Qe5 {[%emt 0:03:07]} 43. Qh4 $2 {[%emt 0:00:46]} (43. Qf1) 43... Qh2 {[%emt 0:04:07]} 44. Qe1 {[%emt 0:02:53]} Ka7 {[%emt 0:03:24]} 45. Qd1 $2 {[%emt 0:08:08]} (45. Qf1 {was worth a try.}) 45... Qg3 {[%emt 0:03:18]} 46. Ka2 {[%emt 0:00:57]} Qf4 {[%emt 0:04:48]} 47. Qe2 {[%emt 0:01:40]} Bxf3 {[%emt 0:03:56]} 48. Nxf3 {[%emt 0:00:05]} Qe4 {[%emt 0:00:25]} 49. Qg2 {[%emt 0:01:25]} Kb6 {[%emt 0:01:33]} (49... d3 $2 50. cxd3 Qd5+ 51. Kb1 $19) 50. Qg6+ {[%emt 0:03:05]} Kb7 {[%emt 0:00:17]} 51. Ng5 {[%emt 0:02:23]} Qe5 {[%emt 0:03:16]} (51... Qxc2 $2 52. Ne6 Qc4+ 53. Ka1 $19) (51... Qd5+ $142 52. Kb1 d3 53. cxd3 Qxd3+ 54. Ka1 Qd1+ 55. Ka2 Qd5+ 56. Kb1 Qd1+ 57. Ka2 Qd5+ 58. Ka1 c4) 52. Qf7 {[%emt 0:05:59]} f4 {[%emt 0:00:48]} 53. Nf3 {[%emt 0:01:08]} Qd6 {[%emt 0:00:44]} (53... Qe4 $2 54. Ng5 Qe5 55. Ne6 $19) 54. Qf5 {[%emt 0:00:33]} Kc6 {[%emt 0:00:30]} 55. Kb1 {[%emt 0:01:26]} Qd5 {[%emt 0:00:51]} 56. Qd3 {[%emt 0:00:14]} Bd6 {[%emt 0:00:46]} 57. a4 {[%emt 0:01:12]} Qe6 {[%emt 0:00:20]} 58. b4 {[%emt 0:02:04]} (58. axb5+ {might work better.} axb5 59. b4) 58... Qe3 $19 {[%emt 0:00:48]} 59. axb5+ {[%emt 0:01:29]} axb5 {[%emt 0:00:03]} 60. Qd1 {[%emt 0:00:50]} Qc3 {[%emt 0:00:53]} 61. bxc5 {[%emt 0:00:25]} Qb4+ {[%emt 0:00:45]} (61... Bxc5 62. Ne5+ Kb6 63. Nd3 $17) (61... Qxc5 62. Nxd4+ Kb6 63. Nb3 $17) (61... Kxc5 $19 {Hoping for ...Kb6.} 62. Nd2 Kb6) 62. Ka2 {[%emt 0:00:20]} Bxc5 $2 {[%emt 0:00:35]} (62... Kxc5 $19 {Strongly threatening ...Qc3.} 63. Ne1 Kb6) 63. Ne5+ $11 {[%emt 0:00:28]} Kc7 {[%emt 0:00:39]} 64. Nd3 {[%emt 0:00:21]} Qc4+ {[%emt 0:00:19]} 65. Kb1 {[%emt 0:00:29]} Bd6 {[%emt 0:00:16]} 66. Qf3 {[%emt 0:00:52]} Qc6 {[%emt 0:00:48]} 67. Qf2 {[%emt 0:00:39]} Qe4 {[%emt 0:00:19]} 68. Qh4 {[%emt 0:00:23]} (68. Qg1 {with more complications.} f3 69. Qg8 Kd7 70. Qf7+) 68... Qf5 {[%emt 0:00:47]} 69. Qf2 {[%emt 0:00:12]} Qe4 {[%emt 0:00:26]} 70. Qh4 $1 {[%emt 0:00:07]} b4 {[%emt 0:00:17]} 71. Kb2 {[%emt 0:00:05]} (71. Qh5 $11) 71... Kc6 {[%emt 0:00:35]} ({Black should play} 71... Qc6 $15 72. Qh7+ Kb6) 72. Qg4 $11 {[%emt 0:00:08]} Kc7 {[%emt 0:00:38]} 73. Qg7+ {[%emt 0:00:23]} Kd8 {[%emt 0:00:39]} 74. Qg4 {[%emt 0:00:40]} Kc7 {[%emt 0:00:28]} 75. Qg7+ {[%emt 0:00:06]} Kc8 {[%emt 0:00:32]} 76. Qg4+ {[%emt 0:00:10]} Kb8 {[%emt 0:00:26]} 77. Qg8+ {[%emt 0:00:22]} Ka7 {[%emt 0:00:29]} 78. Qg7+ {[%emt 0:00:32]} Kb6 {[%emt 0:00:36]} 79. Qf6 {[%emt 0:01:47]} Kc7 {[%emt 0:00:28]} 80. Qg7+ {[%emt 0:00:08]} Kc6 {[%emt 0:00:32]} 81. Qa7 {[%emt 0:00:39]} Qe3 {[%emt 0:00:26]} 82. Qa6+ {[%emt 0:00:52]} Kd7 {[%emt 0:00:23]} 83. Qb5+ {[%emt 0:00:43]} Kd8 {[%emt 0:00:41]} 84. Qg5+ {[%emt 0:00:46]} Qe7 {[%emt 0:00:31]} 85. Qd5 {[%emt 0:00:41]} Ke8 {[%emt 0:00:28]} 86. Qg8+ {[%emt 0:00:29]} Kd7 {[%emt 0:00:31]} 87. Qd5 {[%emt 0:00:32]} Ke8 {[%emt 0:00:30]} 88. Qg8+ {[%emt 0:00:05]} Qf8 {[%emt 0:00:30]} 89. Qg6+ {[%emt 0:00:26]} Kd7 {[%emt 0:00:18]} 90. Qg4+ {[%emt 0:00:08]} Kc7 {[%emt 0:00:31]} 91. Qg1 {[%emt 0:00:37]} Qf6 {[%emt 0:00:30]} 92. Qg8 {[%emt 0:01:10]} f3 {[%emt 0:00:30]} 93. Qc4+ {[%emt 0:00:08]} Kd8 {[%emt 0:00:34]} 94. Qg8+ {[%emt 0:00:04]} Ke7 {[%emt 0:00:34]} 95. Qh7+ {[%emt 0:00:11]} Kf8 {[%emt 0:00:23]} 96. Qd7 $1 {[%emt 0:00:17]} f2 {[%emt 0:00:41]} 97. Nxf2 $1 {[%emt 0:00:59]} d3+ {[%emt 0:00:18]} 98. Ka2 {[%emt 0:01:04]} d2 {[%emt 0:00:41]} 99. Qc8+ {[%emt 0:00:37]} Kf7 {[%emt 0:00:28]} 100. Qd7+ {[%emt 0:00:13]} Kg8 {[%emt 0:00:33]} 101. Qg4+ {[%emt 0:00:33]} Kf8 {[%emt 0:00:25]} 102. Qc8+ {[%emt 0:00:06]} Ke7 {[%emt 0:00:14]} 103. Qb7+ {[%emt 0:00:21]} Ke6 {[%emt 0:00:51]} 104. Qe4+ {[%emt 0:00:23]} (104. Qc8+ $11 Ke7 105. Qb7+ Ke6 106. Qc8+ Ke7) 104... Kf7 {[%emt 0:00:28]} (104... Qe5 $1 $15 105. Qg4+ Kf6 106. Qf3+ Ke6) 105. Qh7+ {[%emt 0:00:24]} (105. Nd1 $1 $11) 105... Kf8 $17 {[%emt 0:00:19]} 106. Nd1 {[%emt 0:01:26]} (106. Qd7 $142) 106... Be5 $2 {[%emt 0:00:19]} (106... Qe6+ $19 107. Kb1 Qe2 108. Qh6+ Kf7 109. Qh7+ Kf8 110. Qh6+ Ke7 111. Qh4+ Ke6 112. Qh3+ Kf6 113. Qh8+ Ke7 114. Qh7+ Ke6 115. Qh3+ Kf6 116. Qh8+ Ke7 117. Qh7+ Ke8 118. Qh8+ Ke7) 107. Qd3 {[%emt 0:00:50] [#]} (107. Qd7 $11 {keeps the balance.}) 107... Bc3 {[%emt 0:00:52]} (107... Qe6+ $1 $17 108. Kb1 Bc3 109. Qf3+ Ke7 110. Qb7+ Kf6 111. Qf3+ Kg6 112. Qg2+ Kf7 113. Qb7+ Kg6 114. Qg2+ Kf5 115. Qf3+ Kg5 116. Qg2+ Kf6 117. Qf2+ Kg7) 108. Ne3 $2 {[%emt 0:00:45][%mdl 8192]} (108. Qd5 $1 $11 {and White has nothing to worry.}) 108... Qe6+ $2 {[%emt 0:00:28]} (108... Ba1 109. Nc4 $11) (108... Qf3 $19 {has better winning chances.} 109. Kb3 {[#]} Qxe3 $3 {[%mdl 512]} 110. Qxe3 d1=Q) 109. Nd5 $17 {[%emt 0:00:27]} Qe1 $2 {[%emt 0:00:37]} (109... Kf7 $19 {aiming for ...Qg4.} 110. Kb3 Qg4) 110. Qf5+ $11 {[%emt 0:00:35]} Ke8 {[%emt 0:00:23]} 111. Qc8+ {[%emt 0:00:27]} Kf7 {[%emt 0:00:06]} 112. Qf5+ {[%emt 0:00:06]} Kg7 {[%emt 0:00:57]} 113. Qg5+ {[%emt 0:00:16]} Kf8 {[%emt 0:00:30]} 114. Qd8+ {[%emt 0:01:01]} Qe8 {[%emt 0:00:26]} (114... Kf7 $5 115. Qd7+ $8 Kg8 116. Qc8+ Kh7 117. Qh3+ Kg7 118. Qg4+ Kh6 119. Qf4+ Kh7 120. Qf7+ Kh8 121. Qf8+ Kh7 122. Qf7+ Kh8 123. Qf8+ Kh7 124. Qf7+ $11) 115. Qd6+ {[%emt 0:00:07]} Kf7 {[%emt 0:00:33]} 116. Qf4+ {[%emt 0:00:09]} Kg7 {[%emt 0:00:30]} 117. Qg3+ {[%emt 0:00:59]} Qg6 {[%emt 0:00:31]} 118. Qc7+ {[%emt 0:00:07]} Qf7 {[%emt 0:00:30]} 119. Qg3+ {[%emt 0:00:05]} Qg6 {[%emt 0:00:22]} 120. Qc7+ {[%emt 0:00:05]} Kh6 {[%emt 0:00:39]} 121. Qh2+ {[%emt 0:00:28]} Qh5 {[%emt 0:00:32]} (121... Kg7 $6 122. Qc7+ $17) 122. Qd6+ {[%emt 0:00:31]} Kg7 {[%emt 0:00:30]} 123. Qe7+ {[%emt 0:01:11]} Kh6 {[%emt 0:00:27]} 124. Qe3+ {[%emt 0:00:30]} Qg5 {[%emt 0:00:25]} (124... Kg7 $6 125. Qe7+ Qf7 126. Qg5+ Qg6 127. Qe7+ Qf7 128. Qg5+ Kh8 129. Qh6+ Kg8 130. Qg5+ Kh7 131. Qh4+ Kg6 132. Qg4+ Kh7 133. Qh3+ Kg8 134. Qc8+ Kh7 135. Qh3+ Kg8 136. Qc8+ Kh7 137. Qh3+ $17) 125. Qh3+ {[%emt 0:00:32]} Kg6 {[%emt 0:00:29]} 126. Qe6+ {[%emt 0:00:40]} Kg7 {[%emt 0:00:31]} 127. Qd7+ {[%emt 0:00:14]} Kh6 {[%emt 0:00:34]} 128. Qh3+ {[%emt 0:00:10]} Kg6 {[%emt 0:00:22]} 129. Qe6+ {[%emt 0:00:45]} Kh7 {[%emt 0:00:26]} (129... Bf6 $5 130. Qe4+ Kh6 $17) 130. Qh3+ {[%emt 0:00:19]} Qh6 {[%emt 0:00:34]} 131. Qf5+ {[%emt 0:00:31]} Qg6 {[%emt 0:00:34]} (131... Kg7 $5 132. Qd7+ $8 Kg6 133. Ne7+ Kh5 134. Qh3+ (134. Qd5+ Qg5 $17) 134... Kg5 135. Qe3+ (135. Qg3+ Kh5 $11) 135... Kh5 136. Qh3+ Kg5 137. Qe3+ (137. Qg3+ Kh5 $11) 137... Kh5 138. Qh3+ $11) 132. Qh3+ {[%emt 0:00:13]} Kg7 {[%emt 0:00:08]} 133. Qd7+ {[%emt 0:00:11]} Kh8 {[%emt 0:00:39]} ({Black should try} 133... Qf7 $11 134. Qg4+ Kh8 135. Qc8+ Kh7 136. Qh3+ Kg8 137. Qc8+ Kh7 138. Qh3+ Kg8 139. Qc8+ Kg7 140. Qg4+ Kf8 141. Qc8+ Kg7 142. Qg4+) 134. Qh3+ $1 $17 {[%emt 0:00:22]} Kg7 {[%emt 0:00:39]} 135. Qd7+ {[%emt 0:00:04]} Kh6 {[%emt 0:00:25]} (135... Qf7 $17 136. Qg4+ Kh6 137. Qh4+ Qh5 138. Qf4+ Qg5) 136. Qh3+ $11 {[%emt 0:00:11]} Qh5 {[%emt 0:00:31]} ({And not} 136... Kg7 137. Qd7+ $17) 137. Qe3+ {[%emt 0:01:03]} Qg5 {[%emt 0:00:30]} ({Don't play} 137... Kg7 $6 138. Qe7+ Qf7 139. Qg5+ Qg6 140. Qe7+ Qf7 141. Qg5+ Kh8 142. Qd8+ Kh7 143. Qh4+ Kg8 144. Qd8+ Kh7 145. Qh4+ Kg6 146. Qg4+ Kh6 147. Qh4+ Qh5 148. Qf4+ Qg5 $17) 138. Qh3+ {[%emt 0:01:39]} Kg6 {[%emt 0:00:15]} 139. Qe6+ {[%emt 0:00:06]} Bf6 {[%emt 0:00:53]} 140. Ne7+ $2 {[%emt 0:01:53][%mdl 8192]} (140. Qe4+ $11 {and White stays safe.} Kf7 141. Qd3) 140... Kg7 $19 {[%emt 0:00:34]} 141. Nf5+ {[%emt 0:00:25]} Qxf5 {[%emt 0:00:09]} 0-1

[Event "26th Womens ECCC 2022"]
[Site "Mayrhofen"]
[Date "2022.10.07"]
[Round "5.27"]
[White "Djukic, Sandra"]
[Black "Reprun, Nadejda"]
[Result "1-0"]
[ECO "D70"]
[WhiteElo "2138"]
[BlackElo "1968"]
[Annotator "TA"]
[PlyCount "55"]
[EventDate "2022.10.03"]
[EventType "team-tourn"]
[EventCountry "AUT"]
[SourceTitle "playchess.com"]
[Source "ChessBase"]
[SourceQuality "1"]
[TimeControl "40/5400+30:1800+30"]

{[%evp 12,55,29,9,37,21,9,-9,35,30,35,26,32,29,37,34,33,33,32,15,46,46,45,35,38,41,48,41,39,31,12,14,31,7,32,22,196,175,184,118,272,270,270,0,221,193]} 1. d4 {[%emt 0:00:04]} d5 {[%emt 0:00:04]} 2. c4 {[%emt 0:00:06]} c6 {[%emt 0:00:06]} 3. Nf3 {[%emt 0:00:04]} Nf6 {[%emt 0:00:07]} 4. Nbd2 {[%emt 0:00:05]} g6 {[%emt 0:02:31]} 5. e3 {[%emt 0:00:16]} Bg7 {[%emt 0:00:05]} 6. Bd3 {[%emt 0:01:42]} O-O {[%emt 0:01:44]} 7. O-O {[%emt 0:00:09]} Bg4 {[%emt 0:02:37][%cal Oc6c5] D70: Grünfeld: Unusual White 3rd moves (met by ...d5).} 8. Qb3 {[%emt 0:00:46]} Qb6 {[%emt 0:02:00] [#]} 9. Qc2 $146 {[%emt 0:07:42][%cal Ob2b4]} ({Predecessor:} 9. Ne5 Be6 10. Qa3 Re8 11. Ndf3 dxc4 12. Nxc4 Bxc4 13. Bxc4 e6 14. Bd2 Bf8 15. Qd3 {0-1 (86) Milanovic,S (2362)-Schaerer,J (2265) Baden 2019}) 9... Nfd7 {[%emt 0:09:02] The position is equal.} 10. Rb1 {[%emt 0:04:35]} e5 {[%emt 0:01:53]} 11. dxe5 {[%emt 0:02:48]} Nxe5 {[%emt 0:00:12]} 12. Nxe5 {[%emt 0:00:04]} Bxe5 {[%emt 0:00:06]} 13. b4 {[%emt 0:09:32]} Nd7 {[%emt 0:04:27]} 14. h3 {[%emt 0:22:08]} Be6 {[%emt 0:00:47]} 15. a4 {[%emt 0:08:30]} Rac8 {[%emt 0:09:58]} 16. c5 {[%emt 0:05:58]} Qd8 {[%emt 0:01:09]} 17. Nf3 {[%emt 0:04:19]} Bg7 {[%emt 0:01:10]} 18. Bb2 {[%emt 0:03:42]} Bxb2 {[%emt 0:00:59]} 19. Qxb2 {[%emt 0:00:26]} a5 {[%emt 0:08:46]} 20. Ne5 {[%emt 0:05:04]} axb4 {[%emt 0:03:50]} 21. Nxd7 {[%emt 0:00:14]} Qxd7 {[%emt 0:00:34]} 22. Qxb4 {[%emt 0:01:08]} Rc7 {[%emt 0:00:42]} 23. Qf4 {[%emt 0:00:20]} Bf5 $2 {[%emt 0:03:21] [#]} (23... Qe7 $11 {and Black is okay.}) 24. Bxf5 $18 {[%emt 0:00:06]} gxf5 {[%emt 0:00:04]} 25. e4 {[%emt 0:05:14]} (25. Qg5+ $18 Kh8 26. Qf6+ Kg8 27. Rb6) 25... fxe4 $2 {[%emt 0:05:26]} (25... dxe4 $16 26. Rfd1 Qe7) 26. Qg5+ {[%emt 0:00:08]} Kh8 {[%emt 0:01:19]} 27. Qf6+ {[%emt 0:00:04]} Kg8 {[%emt 0:00:05]} 28. Rb3 {[%emt 0:00:03] Weighted Error Value: White=0.11 (very precise) /Black=0.38} 1-0

[Event "26th Womens ECCC 2022"]
[Site "Mayrhofen"]
[Date "2022.10.07"]
[Round "5.28"]
[White "Vardi, Shlomit"]
[Black "Manova, Ivana"]
[Result "1-0"]
[ECO "C53"]
[WhiteElo "1769"]
[BlackElo "1876"]
[Annotator "NA RC COMBH"]
[PlyCount "133"]
[EventDate "2022.10.03"]
[EventType "team-tourn"]
[EventCountry "AUT"]
[SourceTitle "playchess.com"]
[Source "ChessBase"]
[SourceQuality "1"]
[TimeControl "40/5400+30:1800+30"]

1. e4 {[%emt 0:00:05]} e5 {[%emt 0:03:46]} 2. Nf3 {[%emt 0:00:09]} Nc6 {[%emt 0:00:08]} 3. Bc4 {[%emt 0:00:06]} Bc5 {[%emt 0:00:17]} 4. c3 {[%emt 0:00:22]} Bb6 {[%emt 0:01:06]} 5. d3 {[%emt 0:02:25]} Qf6 {[%emt 0:01:44]} 6. Bg5 {[%emt 0:17:56]} Qg6 {[%emt 0:01:46]} 7. Nbd2 {[%emt 0:00:30]} h6 {[%emt 0:06:17]} 8. Bh4 {[%emt 0:00:09]} d6 {[%emt 0:01:29]} 9. Bg3 {[%emt 0:03:55]} Nge7 {[%emt 0:06:47]} 10. Qe2 {[%emt 0:15:24]} Be6 {[%emt 0:04:14]} 11. Nh4 {[%emt 0:05:49]} Qf6 {[%emt 0:02:39]} 12. b4 {[%emt 0:06:50]} g5 {[%emt 0:03:18]} 13. Nhf3 {[%emt 0:01:17]} Ng6 {[%emt 0:02:01]} 14. Bxe6 {[%emt 0:01:17]} fxe6 {[%emt 0:01:23]} 15. Nc4 {[%emt 0:00:29]} O-O {[%emt 0:06:18]} 16. a4 {[%emt 0:02:38]} d5 {[%emt 0:03:58]} 17. Nxb6 {[%emt 0:04:14]} axb6 {[%emt 0:00:12]} 18. O-O {[%emt 0:02:14]} Nf4 {[%emt 0:12:38]} 19. Bxf4 {[%emt 0:02:31]} exf4 {[%emt 0:00:19]} 20. b5 {[%emt 0:04:30]} Ne7 {[%emt 0:04:23]} 21. h3 {[%emt 0:05:51]} Rfe8 {[%emt 0:11:08]} 22. Nh2 {[%emt 0:02:27]} Ng6 {[%emt 0:01:01]} 23. Ng4 {[%emt 0:01:45]} Qg7 {[%emt 0:00:14]} 24. e5 {[%emt 0:00:39]} Kh8 {[%emt 0:01:41]} 25. Nf6 {[%emt 0:01:48]} Rf8 {[%emt 0:00:35]} 26. d4 {[%emt 0:00:14]} Ne7 {[%emt 0:05:21]} 27. Ra2 {[%emt 0:03:51]} Ng8 {[%emt 0:00:34]} 28. Nh5 {[%emt 0:01:12]} Qg6 {[%emt 0:01:03]} 29. Qg4 {[%emt 0:00:32]} Qf5 {[%emt 0:06:41]} 30. Rfa1 {[%emt 0:00:13]} Qxg4 {[%emt 0:02:06]} 31. hxg4 {[%emt 0:00:04]} Ra5 {[%emt 0:00:13]} 32. c4 {[%emt 0:01:53]} Rd8 {[%emt 0:03:52]} 33. Rc1 {[%emt 0:00:48]} Ne7 {[%emt 0:04:30]} 34. c5 {[%emt 0:00:33]} bxc5 {[%emt 0:00:36]} 35. Rxc5 {[%emt 0:00:36]} c6 {[%emt 0:00:24]} 36. Rb2 {[%emt 0:01:12]} Kg8 {[%emt 0:03:08]} 37. Nf6+ {[%emt 0:03:30]} Kf8 {[%emt 0:00:08]} 38. bxc6 {[%emt 0:00:17]} Rxc5 {[%emt 0:00:12]} 39. dxc5 {[%emt 0:01:34]} bxc6 {[%emt 0:00:07]} 40. a5 {[%emt 0:00:44]} Ra8 {[%emt 0:01:11]} 41. Ra2 {[%emt 0:30:14]} Ra6 {[%emt 0:04:27]} 42. Kf1 {[%emt 0:00:00]} Kf7 {[%emt 0:03:31]} 43. Ke2 {[%emt 0:00:00]} Ng6 {[%emt 0:06:29]} 44. Nd7 {[%emt 0:00:00]} Ra7 {[%emt 0:00:18]} 45. a6 {[%emt 0:00:00]} Ke7 {[%emt 0:01:03]} 46. Nb6 {[%emt 0:00:00]} Kd8 {[%emt 0:00:14]} 47. f3 {[%emt 0:00:00]} Nxe5 {[%emt 0:01:01]} 48. Kd2 {[%emt 0:00:00]} Nf7 {[%emt 0:07:38]} 49. Ra5 {[%emt 0:00:00]} Kc7 {[%emt 0:00:50]} 50. Na4 {[%emt 0:00:00]} Ne5 {[%emt 0:00:45]} 51. Nb2 {[%emt 0:00:00]} Nd7 {[%emt 0:00:57]} 52. Nd3 {[%emt 0:00:00]} Nb8 {[%emt 0:02:20]} 53. Nb4 {[%emt 0:00:00]} e5 {[%emt 0:01:00]} 54. Kd3 {[%emt 0:00:00]} Kd7 {[%emt 0:01:32]} 55. Ra1 {[%emt 0:00:00]} Ke6 {[%emt 0:00:46]} 56. Rh1 {[%emt 0:00:00]} Kf6 {[%emt 0:03:57]} 57. Nxc6 {[%emt 0:00:00]} Nxc6 {[%emt 0:01:57]} 58. Rxh6+ {[%emt 0:00:00]} Ke7 {[%emt 0:00:14]} 59. Rxc6 {[%emt 0:00:00]} Kd7 {[%emt 0:00:09]} 60. Rd6+ {[%emt 0:00:00]} Kc7 {[%emt 0:01:23]} 61. Rxd5 {[%emt 0:00:00]} Rxa6 {[%emt 0:00:17]} 62. Rxe5 {[%emt 0:00:00]} Rg6 {[%emt 0:00:26]} 63. Ke4 {[%emt 0:00:00]} Kc6 {[%emt 0:00:45]} 64. Kf5 {[%emt 0:00:00]} Rg8 {[%emt 0:00:16]} 65. Kf6 {[%emt 0:00:00]} Rd8 {[%emt 0:00:43]} 66. Rxg5 {[%emt 0:00:00]} Rd2 {[%emt 0:00:28]} 67. Rf5 {[%emt 0:00:00]} 1-0